fUSD/lending_fUSD_20251105
["ID","MTS","AMOUNT","RATE_DAILY","PERIOD"]
[393213591,1762326632559,-151.0,0.00017989,2]
[393213592,1762326632568,-396.55280614,0.0001799,2]
[393213593,1762326632577,-150.0,0.00017997,2]
[393213594,1762326632586,-217.3955486,0.00017997,2]
[393213595,1762326632595,-150.0,0.00017997,2]
[393213596,1762326632604,-150.0,0.00017997,2]
[393213597,1762326632613,-151.13904288,0.00017997,2]
[393213598,1762326632622,-150.0,0.00017997,2]
[393213599,1762326632632,-150.0,0.00017997,2]
[393213600,1762326632642,-150.0,0.00017997,2]
[393213601,1762326632651,-151.0,0.00017997,2]
[393213602,1762326632660,-151.0,0.00017997,2]
[393213603,1762326632669,-151.0,0.00017997,2]
[393213604,1762326632678,-301.16203109,0.00017997,2]
[393213605,1762326632688,-256.36665031,0.00017997,2]
[393213606,1762326632697,-500.0,0.00017997,2]
[393213607,1762326632706,-500.0,0.00017997,2]
[393213608,1762326632715,-500.0,0.00017997,2]
[393213609,1762326632724,-500.0,0.00017997,2]
[393213610,1762326632734,-500.0,0.00017997,2]
[393213611,1762326632743,-500.0,0.00017997,2]
[393213612,1762326632752,-500.0,0.00017997,2]
[393213613,1762326632761,-500.0,0.00017997,2]
[393213614,1762326632771,-500.0,0.00017997,2]
[393213615,1762326632780,-500.0,0.00017997,2]
[393213616,1762326632789,-500.0,0.00017997,2]
[393213617,1762326632798,-500.0,0.00017997,2]
[393213618,1762326632807,-574.56585984,0.00017997,2]
[393213619,1762326632817,-500.0,0.00017997,2]
[393213620,1762326632826,-500.0,0.00017997,2]
[393213621,1762326632835,-500.0,0.00017997,2]
[393213622,1762326632844,-500.0,0.00017997,2]
[393213623,1762326632853,-500.0,0.00017997,2]
[393213624,1762326632862,-500.0,0.00017997,2]
[393213625,1762326632871,-500.0,0.00017997,2]
[393213626,1762326632880,-500.0,0.00017997,2]
[393213627,1762326632889,-500.0,0.00017997,2]
[393213628,1762326632898,-500.0,0.00017997,2]
[393213629,1762326632907,-500.0,0.00017997,2]
[393213630,1762326632916,-500.0,0.00017997,2]
[393213631,1762326632925,-150.0,0.00017998,2]
[393213632,1762326632934,-150.0,0.00017998,2]
[393213633,1762326632943,-500.0,0.00017998,2]
[393213634,1762326632952,-500.0,0.00017998,2]
[393213635,1762326632961,-150.0,0.00017998,2]
[393213636,1762326632970,-500.0,0.00017998,2]
[393213637,1762326632979,-150.0,0.00017998,2]
[393213638,1762326632988,-150.0,0.00017998,2]
[393213639,1762326632998,-500.0,0.00017998,2]
[393213640,1762326633007,-150.0,0.00017998,2]
[393213641,1762326633016,-150.0,0.00017998,2]
[393213642,1762326633025,-500.0,0.00017998,2]
[393213643,1762326633034,-150.0,0.00017998,2]
[393213644,1762326633044,-500.0,0.00017998,2]
[393213645,1762326633053,-150.0,0.00017998,2]
[393213646,1762326633063,-500.0,0.00017998,2]
[393213647,1762326633073,-500.0,0.00017998,2]
[393213648,1762326633082,-500.0,0.00017999,2]
[393213649,1762326633091,-500.0,0.00017999,2]
[393213650,1762326633100,-242.08571964,0.00017999,2]
[393213651,1762326633110,-588.39813314,0.00017999,2]
[393213652,1762326633119,-500.0,0.00017999,2]
[393213653,1762326633129,-500.0,0.00017999,2]
[393213654,1762326633138,-500.0,0.00017999,2]
[393213655,1762326633147,-500.0,0.00017999,2]
[393213656,1762326633156,-500.0,0.00017999,2]
[393213657,1762326633165,-511.24673023,0.00017999,2]
[393213658,1762326633174,-500.0,0.00017999,2]
[393213659,1762326633183,-500.0,0.00017999,2]
[393213660,1762326633194,-500.0,0.00017999,2]
[393213661,1762326633204,-500.0,0.00017999,2]
[393213662,1762326633213,-150.0,0.00017999,2]
[393213663,1762326633223,-500.0,0.00017999,2]
[393213664,1762326633232,-314.56515731,0.00017999,2]
[393213665,1762326633241,-584.44400285,0.00017999,2]
[393213666,1762326633251,-279.94688194,0.00017999,2]
[393213667,1762326633260,-101862.98509637,0.00018,2]
[393213668,1762326633276,-83840.77891776,0.00018,2]
[393213669,1762326633288,-79918.99936989,0.00018,2]
[393213670,1762326633299,-362874.95545464,0.00018,2]
[393213671,1762326633310,-1254.41808677,0.00018,2]
[393213672,1762326633324,-158286.22432303,0.00018,2]
[393213673,1762326633335,-773.69291626,0.00018,2]
[393213674,1762326633380,-3330.5190611,0.00018,2]
[393213675,1762326633414,-1253.82437246,0.00018,2]
[393213676,1762326633426,-565.0,0.00018,2]
[393213677,1762326633436,-2623.40982985,0.00018,2]
[393213678,1762326633537,-33479.54934292,0.00018,2]
[393213679,1762326633551,-2022.37734242,0.00018,2]
[393213680,1762326633565,-1231.20141571,0.00018,2]
[393213692,1762326637603,-4547.91993482,0.00018,2]
[393213693,1762326637614,-22793.23419105,0.00018,2]
[393213694,1762326637624,-5431.52746972,0.00018,2]
[393213695,1762326637636,-25250.83535293,0.00018,2]
[393213696,1762326637647,-21107.01695325,0.00018,2]
[393213697,1762326637658,-6337.42619871,0.00018,2]
[393213698,1762326637669,-32065.14047232,0.00018,2]
[393213699,1762326637680,-419.075,0.00018,2]
[393213700,1762326637691,-1512.06814833,0.00018,2]
[393213701,1762326637864,-912.42344259,0.00018,2]
[393213702,1762326637876,-261.25000005,0.00018,2]
[393213708,1762326639767,-302.0,0.00018,2]
[393213709,1762326639778,-1408.96817405,0.00018,2]
[393213710,1762326639888,-337.39813374,0.00018,2]
[393213711,1762326640106,-524.16,0.00018,2]
[393213719,1762326642856,-8627.85861889,0.00018,2]
[393213720,1762326642891,-34076.10916172,0.00018,2]
[393213728,1762326645974,-11651.35184316,0.00018,2]
[393213729,1762326645985,-369.369,0.00018,2]
[393213730,1762326645996,-655.9187631,0.00018,2]
[393213731,1762326646109,-52595.11791045,0.00018,2]
[393213732,1762326646250,-455.66920586,0.00018,2]
[393215432,1762326682167,334.42,0.00013699,2]
[393215460,1762326988187,184.49226255,0.00012,2]
[393215486,1762327470207,150.0,0.0001729,120]
[393215498,1762327576167,-166.66,0.0001714,2]
[393215499,1762327576198,-150.0,0.0001729,2]
[393215500,1762327576229,-195.0,0.00017321,2]
[393215501,1762327576260,-166.66,0.00017501,2]
[393215502,1762327576290,-1120.09916311,0.00017622,2]
[393215503,1762327576320,-893.58488772,0.00017659,2]
[393215504,1762327576351,-221.75791629,0.00017694,2]
[393215505,1762327576381,-1442.58976793,0.000177,2]
[393215506,1762327576412,-166.66,0.00017862,2]
[393215507,1762327578985,-2608.1615154,0.00017954,2]
[393215508,1762327579015,-253.00839205,0.00017961,2]
[393215509,1762327579046,-243.40040728,0.00017961,2]
[393215510,1762327579095,-383.09876114,0.00017961,2]
[393215511,1762327579131,-150.0,0.00017985,2]
[393215512,1762327579162,-300.0,0.00017985,2]
[393215513,1762327579194,-924.67184826,0.00017985,2]
[393215514,1762327585053,-275.32815174,0.00017985,2]
[393215515,1762327585084,-320.56,0.00017986,2]
[393215516,1762327585115,-150.99,0.00017986,2]
[393215517,1762327585278,-2897.03462065,0.00017986,2]
[393215518,1762327588103,-2897.05462065,0.00017986,2]
[393215519,1762327588127,-4205.9007587,0.00017986,2]
[393215521,1762327595351,271.23,0.00024918,120]
[393215522,1762327595546,271.23,0.00027184,120]
[393215532,1762327681629,300.0,0.00014999,2]
[393215537,1762327711494,500.0,0.00014999,2]
[393215538,1762327711546,500.0,0.00014999,2]
[393215539,1762327711597,341.61842887,0.00014999,2]
[393215553,1762327801261,300.0,0.00014999,2]
[393215554,1762327801300,300.0,0.00014999,2]
[393215555,1762327801364,1200.0,0.00014999,2]
[393215556,1762327801933,150.0,0.00014999,2]
[393215570,1762327831857,-4498.31984365,0.00015,2]
[393215571,1762327831869,-3548.05906453,0.00015,2]
[393215572,1762327831880,-4979.82415718,0.00015,2]
[393215573,1762327831894,-2144.97989743,0.00015,2]
[393215574,1762327831905,-875.88927357,0.00015,2]
[393215575,1762327831916,-871.98025582,0.00015,2]
[393215576,1762327831927,-258.38525471,0.00015,2]
[393215577,1762327831938,-801.98263016,0.00015,2]
[393215578,1762327832065,-511.27727383,0.00015,2]
[393215579,1762327832167,-1051.0,0.00015,2]
[393215582,1762327837808,-2282.69791373,0.00015,2]
[393215583,1762327837822,-1627.4,0.00015,2]
[393215584,1762327837913,-107317.32873297,0.00015,2]
[393215585,1762327837924,-911.51578637,0.0001567,2]
[393215586,1762327837934,-195.0,0.0001567,2]
[393215587,1762327837944,-255.0,0.00016124,2]
[393215588,1762327837954,-200.0,0.0001634,2]
[393215589,1762327837964,-420.0,0.00016416,2]
[393215590,1762327837974,-420.0,0.00016416,2]
[393215591,1762327837983,-500.0,0.00016438,2]
[393215592,1762327837993,-500.0,0.00016438,2]
[393215593,1762327838003,-500.0,0.00016438,2]
[393215594,1762327838013,-500.0,0.00016438,2]
[393215595,1762327838022,-249.06155755,0.00016438,2]
[393215597,1762327838032,-500.0,0.00016438,2]
[393215598,1762327838041,-500.0,0.00016438,2]
[393215599,1762327838052,-1095.97,0.00016438,2]
[393215600,1762327838061,-1680.0,0.00016499,2]
[393215601,1762327838071,-2500.0,0.000165,2]
[393215602,1762327838080,-195.0,0.000165,2]
[393215603,1762327838090,-250.0,0.000165,2]
[393215604,1762327838103,-302.60422307,0.000165,2]
[393215605,1762327838113,-300.0,0.000165,2]
[393215606,1762327838123,-241.9165,0.0001704,2]
[393215607,1762327838132,-2000.0,0.00017198,2]
[393215608,1762327838142,-433.0,0.00017339,2]
[393215609,1762327838152,-425.29704,0.0001782,2]
[393215610,1762327838162,-4999.76139801,0.00017889,2]
[393215611,1762327838172,-4999.76139793,0.00017897,2]
[393215612,1762327838182,-5163.99911279,0.000179,2]
[393215613,1762327838192,-4999.76139793,0.00017905,2]
[393215614,1762327838202,-4999.76139793,0.00017913,2]
[393215615,1762327838212,-4999.76139793,0.00017921,2]
[393215616,1762327838222,-4999.76139793,0.00017929,2]
[393215617,1762327838232,-4999.76139793,0.00017937,2]
[393215618,1762327838242,-4999.76139793,0.00017945,2]
[393215619,1762327838252,-4999.76139793,0.00017953,2]
[393215620,1762327838263,-210.13197303,0.00017961,2]
[393215621,1762327838274,-327.847275,0.00017961,2]
[393215622,1762327838283,-179.54031116,0.00017961,2]
[393215623,1762327838296,-4999.76139793,0.00017961,2]
[393215624,1762327838306,-62809.22508427,0.00017961,2]
[393215625,1762327838316,-587.0,0.00017966,2]
[393215626,1762327838327,-587.0,0.00017966,2]
[393215627,1762327838336,-184.0,0.00017973,2]
[393215628,1762327838347,-500.64822633,0.00017973,2]
[393215629,1762327838357,-204.28733051,0.00017973,2]
[393215630,1762327838368,-501.31532823,0.00017973,2]
[393215631,1762327838378,-502.06961086,0.00017973,2]
[393215632,1762327838388,-505.63349764,0.00017973,2]
[393215633,1762327838398,-500.46661689,0.00017973,2]
[393215634,1762327838408,-500.0,0.00017973,2]
[393215635,1762327838418,-508.80393106,0.00017973,2]
[393215636,1762327838429,-500.0,0.00017973,2]
[393215637,1762327838439,-500.0,0.00017973,2]
[393215638,1762327838449,-500.0,0.00017973,2]
[393215639,1762327838459,-500.0,0.00017973,2]
[393215640,1762327838469,-500.0,0.00017973,2]
[393215641,1762327838479,-608.63540489,0.00017973,2]
[393215642,1762327838492,-200.1487595,0.00017973,2]
[393215643,1762327838503,-500.0,0.00017973,2]
[393215644,1762327838513,-500.0,0.00017982,2]
[393215645,1762327838523,-9999.99,0.00017986,2]
[393215646,1762327838533,-545.58,0.00017989,2]
[393215647,1762327838543,-151.0,0.00017989,2]
[393215648,1762327838553,-151.0,0.00017989,2]
[393215649,1762327838563,-151.0,0.00017989,2]
[393215650,1762327838574,-151.0,0.00017989,2]
[393215651,1762327838583,-151.0,0.00017989,2]
[393215652,1762327838594,-151.0,0.00017989,2]
[393215653,1762327838603,-151.0,0.00017989,2]
[393215654,1762327838613,-151.0,0.00017989,2]
[393215655,1762327838623,-151.0,0.00017989,2]
[393215656,1762327838632,-151.0,0.00017989,2]
[393215657,1762327838642,-151.0,0.00017989,2]
[393215658,1762327838652,-151.0,0.00017989,2]
[393215659,1762327838661,-151.0,0.00017989,2]
[393215660,1762327838671,-151.0,0.00017989,2]
[393215661,1762327838682,-151.0,0.00017989,2]
[393215662,1762327838694,-151.0,0.00017989,2]
[393215663,1762327838703,-151.0,0.00017989,2]
[393215664,1762327838713,-151.0,0.00017989,2]
[393215665,1762327838722,-151.0,0.00017989,2]
[393215666,1762327838732,-151.0,0.00017989,2]
[393215667,1762327838742,-151.0,0.00017989,2]
[393215668,1762327838751,-151.0,0.00017989,2]
[393215669,1762327838761,-151.0,0.00017989,2]
[393215670,1762327838771,-151.0,0.00017989,2]
[393215671,1762327838784,-151.0,0.00017989,2]
[393215672,1762327838794,-151.0,0.00017989,2]
[393215673,1762327838804,-151.0,0.00017989,2]
[393215674,1762327838813,-151.0,0.00017989,2]
[393215675,1762327838823,-151.0,0.00017989,2]
[393215676,1762327838833,-151.0,0.00017989,2]
[393215677,1762327838843,-151.0,0.00017989,2]
[393215678,1762327838853,-151.0,0.00017989,2]
[393215679,1762327838863,-151.0,0.00017989,2]
[393215680,1762327838873,-151.0,0.00017989,2]
[393215681,1762327838886,-151.0,0.00017989,2]
[393215682,1762327838896,-151.0,0.00017989,2]
[393215683,1762327838905,-180.82586183,0.00017989,2]
[393215684,1762327838915,-151.0,0.00017989,2]
[393215685,1762327839217,-151.0,0.00017989,2]
[393215686,1762327839230,-151.0,0.00017989,2]
[393215687,1762327839241,-151.0,0.00017989,2]
[393215688,1762327839251,-151.0,0.00017989,2]
[393215689,1762327839261,-151.0,0.00017989,2]
[393215690,1762327839270,-151.0,0.00017989,2]
[393215691,1762327839281,-151.0,0.00017989,2]
[393215692,1762327839291,-151.0,0.00017989,2]
[393215693,1762327839301,-151.0,0.00017989,2]
[393215694,1762327839310,-151.0,0.00017989,2]
[393215695,1762327839320,-163.3,0.0001799,2]
[393215696,1762327839329,-163.3,0.0001799,2]
[393215697,1762327839339,-163.3,0.0001799,2]
[393215698,1762327839348,-163.3,0.0001799,2]
[393215699,1762327839357,-163.3,0.0001799,2]
[393215700,1762327839367,-163.3,0.0001799,2]
[393215701,1762327839385,-163.3,0.0001799,2]
[393215702,1762327839397,-876.16945045,0.0001799,2]
[393215703,1762327839408,-876.16945045,0.0001799,2]
[393215704,1762327839418,-7302.7490613,0.00017993,2]
[393215705,1762327839427,-4608.3764383,0.00017993,2]
[393215706,1762327839437,-151.0,0.00017997,2]
[393215707,1762327839447,-1403.4952759,0.00017999,2]
[393215708,1762327839457,-151.92422519,0.00017999,2]
[393215709,1762327839466,-150.0,0.00017999,2]
[393215710,1762327839476,-150.0,0.00017999,2]
[393215711,1762327839486,-150.0,0.00017999,2]
[393215712,1762327839496,-150.0,0.00017999,2]
[393215713,1762327839506,-150.0,0.00017999,2]
[393215714,1762327839516,-500.0,0.00017999,2]
[393215715,1762327839526,-500.0,0.00017999,2]
[393215716,1762327839536,-500.0,0.00017999,2]
[393215717,1762327839545,-300.0,0.00017999,2]
[393215718,1762327839555,-300.0,0.00017999,2]
[393215719,1762327839564,-150.0,0.00017999,2]
[393215720,1762327839574,-200.0,0.00017999,2]
[393215721,1762327839584,-500.0,0.00017999,2]
[393215722,1762327839594,-150.0,0.00017999,2]
[393215723,1762327839604,-150.0,0.00017999,2]
[393215724,1762327839614,-500.0,0.00017999,2]
[393215725,1762327839624,-150.0,0.00017999,2]
[393215726,1762327839634,-150.0,0.00017999,2]
[393215727,1762327839644,-150.0,0.00017999,2]
[393215728,1762327839653,-500.0,0.00017999,2]
[393215729,1762327839663,-500.0,0.00017999,2]
[393215730,1762327839674,-500.0,0.00017999,2]
[393215731,1762327839684,-245.10866371,0.00017999,2]
[393215732,1762327839694,-269.40406678,0.00017999,2]
[393215733,1762327839704,-488.02633818,0.00017999,2]
[393215734,1762327839714,-589.55440583,0.00017999,2]
[393215735,1762327839723,-151.0,0.00018,2]
[393215736,1762327839733,-37149.0878296,0.00018,2]
[393215738,1762327839742,-200.0,0.00018,2]
[393215740,1762327839752,-42938.2301894,0.00018,2]
[393215742,1762327839762,-591.69,0.00018,2]
[393215744,1762327839771,-200.0,0.00018,2]
[393215746,1762327839786,-1637630.65734017,0.00018,2]
[393215757,1762327840108,-662.671405,0.00018,2]
[393215758,1762327840178,-1506.81558603,0.00018,2]
[393215759,1762327840192,-718.81267108,0.00018,2]
[393215760,1762327840203,-1861302.91401301,0.00018,2]
[393215761,1762327840240,-303.94,0.00018,2]
[393215762,1762327840250,-15796.94927913,0.00018,2]
[393215763,1762327840261,-4246.43864968,0.00018,2]
[393215766,1762327843043,-208.98782464,0.00017961,2]
[393215767,1762327843055,-46.41134944,0.00017961,2]
[393215768,1762327843064,-51078.71115805,0.00018,2]
[393215769,1762327843076,-22869.99996,0.00018,2]
[393215770,1762327843087,-27070.1443288,0.00018,2]
[393215771,1762327843282,-162.26693818,0.00017961,2]
[393215772,1762327843291,-7520.38537182,0.00018,2]
[393215773,1762327843302,-15499.82021796,0.00018,2]
[393215786,1762327846144,-250.0,0.00017926,2]
[393215787,1762327846154,-500.0,0.00017999,2]
[393215788,1762327846165,-500.0,0.00017999,2]
[393215789,1762327846174,-500.0,0.00017999,2]
[393215790,1762327846184,-18.2032606,0.00017999,2]
[393215791,1762327846196,-481.7967394,0.00017999,2]
[393215792,1762327846205,-472.50685235,0.00017999,2]
[393215819,1762328075210,-1852.42,0.00017188,2]
[393215820,1762328075237,-160.0,0.00017638,2]
[393215821,1762328075263,-1200.0,0.00017639,2]
[393215822,1762328075291,-300.0,0.00017639,2]
[393215823,1762328075317,-3487.58,0.0001764,2]
[393215824,1762328090403,-2338.15,0.0001764,2]
[393215825,1762328090430,-161.85,0.0001764,2]
[393215826,1762328106728,-180.151,0.0001764,2]
[393215827,1762328106755,-1000.0,0.00017795,2]
[393215828,1762328106782,-557.94,0.00017798,2]
[393215829,1762328106808,-300.0,0.00017899,2]
[393215830,1762328106835,-1200.0,0.00017899,2]
[393215831,1762328106864,-300.0,0.00017899,2]
[393215832,1762328106895,-300.0,0.00017899,2]
[393215833,1762328106920,-272.855904,0.000179,2]
[393215834,1762328106947,-182.76469702,0.000179,2]
[393215835,1762328106973,-706.28839898,0.000179,2]
[393215836,1762328118314,-2498.11998353,0.000179,2]
[393215837,1762328118339,-500.0,0.0001796,2]
[393215838,1762328118365,-500.0,0.0001796,2]
[393215839,1762328118391,-500.0,0.0001796,2]
[393215840,1762328118416,-500.0,0.0001796,2]
[393215841,1762328118442,-500.0,0.0001796,2]
[393215842,1762328118467,-500.0,0.0001796,2]
[393215843,1762328118504,-501.88001647,0.0001796,2]
[393215844,1762328129727,-246.98642349,0.000179,2]
[393215845,1762328129755,-3.16239935,0.0001796,2]
[393215846,1762328129783,-550.0,0.00017972,2]
[393215847,1762328146584,279.39,0.00017842,2]
[393215848,1762328152950,-500.0,0.00017973,2]
[393215849,1762328152981,-500.0,0.00017973,2]
[393215850,1762328153008,-500.0,0.00017973,2]
[393215851,1762328153036,-500.0,0.00017973,2]
[393215852,1762328153064,-500.0,0.00017973,2]
[393215853,1762328153092,-500.0,0.00017973,2]
[393215854,1762328153120,-608.63540489,0.00017973,2]
[393215855,1762328153147,-295.47901701,0.00017973,2]
[393215856,1762328153174,-200.1487595,0.00017973,2]
[393215857,1762328153201,-500.0,0.00017973,2]
[393215858,1762328153228,-500.0,0.00017973,2]
[393215859,1762328153258,-500.0,0.00017973,2]
[393215860,1762328153285,-500.64822633,0.00017973,2]
[393215861,1762328153311,-500.8810386,0.00017973,2]
[393215862,1762328153338,-204.28733051,0.00017973,2]
[393215863,1762328153365,-500.0,0.00017973,2]
[393215864,1762328153394,-502.06961086,0.00017973,2]
[393215865,1762328153422,-187.8506123,0.00017973,2]
[393215866,1762328177361,-300.0,0.00017973,2]
[393215867,1762328193534,686.38512649,0.000179,2]
[393215868,1762328199256,-12.61600459,0.00017973,2]
[393215869,1762328199283,-505.63349764,0.00017973,2]
[393215870,1762328199310,-500.0,0.00017973,2]
[393215871,1762328199337,-281.75049777,0.00017988,2]
[393215921,1762329031997,-150.0,0.00016875,2]
[393215922,1762329032007,-200.0,0.00016923,2]
[393215923,1762329032255,-1200.0,0.00016932,2]
[393215924,1762329032268,-4663.78597695,0.00016933,2]
[393215925,1762329032280,-1825.06357538,0.00016933,2]
[393215926,1762329032295,-848.94109769,0.00016933,2]
[393215956,1762329037956,-1022.8416,0.00016933,2]
[393215959,1762329038625,-645.40774998,0.00016933,2]
[393215960,1762329038635,-263.11,0.00016965,2]
[393215961,1762329038645,-241.9165,0.00016986,2]
[393215962,1762329038655,-300.0,0.00016994,2]
[393215963,1762329038665,-300.0,0.00016994,2]
[393215964,1762329038675,-200.0,0.00016995,2]
[393215965,1762329038685,-12786.76,0.00017088,2]
[393215966,1762329038695,-213.85,0.00017316,2]
[393215967,1762329038705,-201.45248135,0.00017534,2]
[393215968,1762329038721,-298.54751865,0.00017534,2]
[393215969,1762329038731,-544.0,0.00017589,2]
[393215970,1762329038740,-893.58488772,0.00017598,2]
[393215971,1762329038750,-221.75791629,0.0001771,2]
[393215972,1762329038760,-5617.50801177,0.00017773,2]
[393215973,1762329038770,-500.0,0.00017843,2]
[393215974,1762329038780,-200.0,0.00017843,2]
[393215975,1762329038790,-200.0,0.00017844,2]
[393215976,1762329038799,-500.0,0.00017844,2]
[393215977,1762329038808,-200.0,0.00017844,2]
[393215978,1762329038818,-200.0,0.00017844,2]
[393215979,1762329038827,-200.0,0.00017844,2]
[393215980,1762329038837,-433.0,0.00017855,2]
[393215981,1762329038846,-500.0,0.00017856,2]
[393215982,1762329038856,-500.0,0.00017856,2]
[393215983,1762329038866,-61.05097675,0.00017856,2]
[393215984,1762329040147,-299.95586298,0.00017856,2]
[393215985,1762329040157,-206.51529701,0.00017856,2]
[393215986,1762329040172,-293.48470299,0.00017856,2]
[393215987,1762329040185,-473.17156465,0.00017856,2]
[393215988,1762329040195,-500.0,0.00017856,2]
[393215989,1762329040205,-500.0,0.00017856,2]
[393215990,1762329040215,-500.0,0.00017856,2]
[393215991,1762329040224,-4298.05148898,0.00017857,2]
[393215992,1762329040276,-83254.58822092,0.00017857,2]
[393215993,1762329040287,-1091.45,0.00017857,2]
[393215994,1762329040297,-9999.99,0.00017857,2]
[393215995,1762329040306,-402.57,0.00017857,2]
[393215996,1762329040315,-9999.99,0.00017857,2]
[393215997,1762329040325,-9999.99,0.00017857,2]
[393215998,1762329040335,-150.99,0.00017857,2]
[393215999,1762329040344,-999.99,0.00017857,2]
[393216000,1762329040354,-101196.438922,0.00017857,2]
[393216001,1762329040363,-500.0,0.00017873,2]
[393216002,1762329040374,-500.0,0.00017873,2]
[393216003,1762329040387,-9999.99,0.00017873,2]
[393216004,1762329040400,-299.99,0.00017873,4]
[393216005,1762329040409,-346.48749089,0.00017873,2]
[393216006,1762329040419,-500.31544654,0.00017873,2]
[393216007,1762329040428,-500.0,0.00017873,2]
[393216008,1762329040439,-500.0,0.00017873,2]
[393216009,1762329040449,-503.31931756,0.00017873,2]
[393216010,1762329040458,-500.0,0.00017873,2]
[393216011,1762329040468,-500.0,0.00017873,2]
[393216012,1762329040478,-500.0,0.00017873,2]
[393216013,1762329040487,-500.0,0.00017873,2]
[393216014,1762329040496,-500.0,0.00017873,2]
[393216015,1762329040505,-500.0,0.00017873,2]
[393216016,1762329040515,-500.0,0.00017873,2]
[393216017,1762329040524,-182.36164877,0.00017889,2]
[393216018,1762329040533,-6280.92250849,0.00017899,2]
[393216019,1762329040543,-266.58351084,0.00017899,2]
[393216020,1762329040553,-491.7709125,0.000179,2]
[393216021,1762329040562,-5163.99911279,0.000179,2]
[393216022,1762329040572,-150.99,0.000179,2]
[393216023,1762329040581,-500.0,0.0001796,2]
[393216024,1762329040591,-554.9128886,0.00017973,2]
[393216025,1762329040600,-621.06284059,0.00017973,2]
[393216026,1762329040610,-508.80393106,0.00017973,2]
[393216027,1762329040626,-503.15659393,0.00017973,2]
[393216028,1762329040636,-500.0,0.00017973,2]
[393216029,1762329040645,-504.25926664,0.00017973,2]
[393216030,1762329040654,-216.03107045,0.00017973,2]
[393216031,1762329040663,-500.0,0.00017973,2]
[393216032,1762329040673,-500.0,0.00017973,2]
[393216033,1762329040682,-205.86369281,0.00017973,2]
[393216034,1762329040691,-500.0,0.00017973,2]
[393216035,1762329040700,-500.0,0.00017973,2]
[393216036,1762329040709,-568.88126658,0.00017973,2]
[393216037,1762329040719,-500.0,0.00017973,2]
[393216038,1762329040728,-500.39073057,0.00017973,2]
[393216039,1762329040737,-500.0,0.00017973,2]
[393216040,1762329040747,-500.79767075,0.00017973,2]
[393216041,1762329040756,-500.0,0.00017973,2]
[393216042,1762329040765,-500.0,0.00017973,2]
[393216043,1762329040774,-510.55136191,0.00017973,2]
[393216044,1762329040783,-500.0,0.00017973,2]
[393216045,1762329040792,-500.0,0.00017973,2]
[393216046,1762329040802,-500.0,0.00017973,2]
[393216047,1762329040811,-500.0,0.00017982,2]
[393216048,1762329040991,-163.3,0.00017989,2]
[393216049,1762329041002,-546.79,0.00017989,2]
[393216050,1762329041012,-151.0,0.00017989,2]
[393216051,1762329041021,-151.0,0.00017989,2]
[393216052,1762329041030,-151.0,0.00017989,2]
[393216053,1762329041040,-151.0,0.00017989,2]
[393216054,1762329041051,-151.0,0.00017989,2]
[393216055,1762329041060,-151.0,0.00017989,2]
[393216056,1762329041069,-151.0,0.00017989,2]
[393216057,1762329041078,-151.0,0.00017989,2]
[393216058,1762329041087,-151.0,0.00017989,2]
[393216059,1762329041097,-151.0,0.00017989,2]
[393216060,1762329041107,-151.0,0.00017989,2]